[Event "Austrian Championship 2022"]
[Site "Vienna"]
[Date "2022.08.17"]
[Round "7.14"]
[White "Exler, Veronika"]
[Black "Ganaus, Hannes"]
[Result "1/2-1/2"]
[ECO "D02"]
[WhiteElo "2132"]
[BlackElo "2284"]
[Annotator "NA RC"]
[PlyCount "39"]
[EventDate "2022.08.12"]
[EventType "swiss"]
[EventCountry "AUT"]
[SourceTitle "playchess.com"]
[Source "ChessBase"]
[SourceQuality "1"]
[TimeControl "40/5400+30:1800+30"]

1. d4 {[%emt 0:02:06]} d5 {[%emt 0:00:28]} 2. Nf3 {[%emt 0:00:12]} c5 {[%emt 0:07:48]} 3. g3 {[%emt 0:00:06]} cxd4 {[%emt 0:02:57]} 4. Bg2 {[%emt 0:00:28]} Nf6 {[%emt 0:00:26]} 5. O-O {[%emt 0:00:16]} h6 {[%emt 0:00:21]} 6. b3 {[%emt 0:01:42]} e6 {[%emt 0:06:25]} 7. Bb2 {[%emt 0:01:50]} Be7 {[%emt 0:03:28]} 8. Nxd4 {[%emt 0:08:04]} O-O {[%emt 0:00:25]} 9. c4 {[%emt 0:03:10]} dxc4 {[%emt 0:04:36]} 10. bxc4 {[%emt 0:00:55]} Na6 {[%emt 0:06:41]} 11. Nc3 {[%emt 0:18:08]} Nc5 {[%emt 0:00:21]} 12. Nb3 {[%emt 0:07:04]} Nfd7 {[%emt 0:06:39]} 13. Qc2 {[%emt 0:03:29]} a6 {[%emt 0:01:09]} 14. Ne4 {[%emt 0:14:54]} Nxe4 {[%emt 0:08:42]} 15. Qxe4 {[%emt 0:00:21]} Qc7 {[%emt 0:08:18]} 16. Rac1 {[%emt 0:11:26]} Rb8 {[%emt 0:06:14]} 17. c5 {[%emt 0:03:10]} Bf6 {[%emt 0:01:49]} 18. Ba3 {[%emt 0:01:30]} Rd8 {[%emt 0:02:09]} 19. Bb4 {[%emt 0:05:51]} Re8 {[%emt 0:03:19]} 20. Ba5 {[%emt 0:15:48]} 1/2-1/2

[Event "Austrian Championship 2022"]
[Site "Vienna"]
[Date "2022.08.17"]
[Round "7.15"]
[White "Albadri Abd Al Sattar"]
[Black "Sandhoefner, Florian"]
[Result "1/2-1/2"]
[ECO "D12"]
[WhiteElo "2161"]
[BlackElo "2289"]
[Annotator "TA"]
[PlyCount "28"]
[EventDate "2022.08.12"]
[EventType "swiss"]
[EventCountry "AUT"]
[SourceTitle "playchess.com"]
[Source "ChessBase"]
[SourceQuality "1"]
[TimeControl "40/5400+30:1800+30"]

{[%evp 14,21,0,-4,35,34,34,8,19,-28]} 1. d4 {[%emt 0:00:38]} d5 {[%emt 0:00:02]} 2. c4 {[%emt 0:01:14]} c6 {[%emt 0:00:01]} 3. e3 {[%emt 0:00:46]} Nf6 {[%emt 0:00:05]} 4. Nf3 {[%emt 0:00:26]} Bf5 {[%emt 0:00:08]} 5. Nc3 {[%emt 0:00:09]} e6 {[%emt 0:00:01]} 6. Qb3 {[%emt 0:00:32]} Qb6 $1 {[%emt 0:00:27] 6...Qb6 is better than 6...Qc7.} 7. c5 {[%emt 0:00:15]} Qc7 {[%emt 0:00:26]} 8. Nh4 {[%emt 0:00:55]} Be7 {[%emt 0:00:42] D12: Slav Defence: 3 Nf3 Nf6 4 e3 Bf5.} 9. Nxf5 {[%emt 0:03:41]} exf5 {[%emt 0:00:06]} 10. Bd3 {[%emt 0:00:04]} g6 {[%emt 0:00:35]} 11. f3 {[%emt 1:27:20] [#]  Weighted Error Value: White=0.09 (flawless) /Black=0.19 (very precise)} (11. Qc2 $142) {Predecessor:} 11... O-O $146 12. Bd2 Nbd7 13. Qc2 Rfe8 14. O-O Bf8 {½-½ (14) Halasz,T (2356)-Gelle,I (2354) Hungary 2011} 1/2-1/2

[Event "Austrian Championship 2022"]
[Site "Vienna"]
[Date "2022.08.17"]
[Round "7.16"]
[White "Schnepp, Gunnar"]
[Black "Leitner, Gerald"]
[Result "0-1"]
[ECO "D30"]
[WhiteElo "2265"]
[BlackElo "2145"]
[Annotator "NA RC"]
[PlyCount "108"]
[EventDate "2022.08.12"]
[EventType "swiss"]
[EventCountry "AUT"]
[SourceTitle "playchess.com"]
[Source "ChessBase"]
[SourceQuality "1"]
[TimeControl "40/5400+30:1800+30"]

1. d4 {[%emt 0:00:01]} Nf6 {[%emt 0:00:23]} 2. c4 {[%emt 0:00:10]} e6 {[%emt 0:01:16]} 3. Nf3 {[%emt 0:00:46]} d5 {[%emt 0:00:35]} 4. g3 {[%emt 0:01:46]} c5 {[%emt 0:00:58]} 5. cxd5 {[%emt 0:00:40]} exd5 {[%emt 0:00:06]} 6. Bg2 {[%emt 0:00:26]} Nc6 {[%emt 0:00:03]} 7. O-O {[%emt 0:00:32]} Be7 {[%emt 0:00:02]} 8. dxc5 {[%emt 0:18:07]} Bxc5 {[%emt 0:03:09]} 9. Qc2 {[%emt 0:00:23]} Bb6 {[%emt 0:01:23]} 10. Nc3 {[%emt 0:00:38]} O-O {[%emt 0:08:26]} 11. Rd1 {[%emt 0:15:54]} Be6 {[%emt 0:00:15]} 12. Bg5 {[%emt 0:27:31]} Rc8 {[%emt 0:00:36]} 13. e4 {[%emt 0:01:38]} d4 {[%emt 0:12:03]} 14. e5 {[%emt 0:19:20]} Nxe5 {[%emt 0:02:05]} 15. Nxe5 {[%emt 0:00:02]} Qe7 {[%emt 0:06:32]} 16. Qe2 {[%emt 0:07:47]} dxc3 {[%emt 0:00:25]} 17. Ng4 {[%emt 0:00:47]} Rfe8 {[%emt 0:12:43]} 18. Nxf6+ {[%emt 0:01:03]} gxf6 {[%emt 0:00:14]} 19. Bh4 {[%emt 0:00:25]} Kg7 {[%emt 0:16:42]} 20. bxc3 {[%emt 0:00:18]} Rxc3 {[%emt 0:00:25]} 21. Rd3 {[%emt 0:00:55]} Rxd3 {[%emt 0:09:24]} 22. Qxd3 {[%emt 0:00:01]} Qc5 {[%emt 0:00:38]} 23. Qf3 {[%emt 0:01:37]} Qe5 {[%emt 0:00:16]} 24. Rd1 {[%emt 0:01:03]} Rc8 {[%emt 0:05:21]} 25. a4 {[%emt 0:00:35]} Rc2 {[%emt 0:02:04]} 26. Rf1 {[%emt 0:00:03]} Ra2 {[%emt 0:01:54]} 27. h3 {[%emt 0:00:32]} Rxa4 {[%emt 0:00:58]} 28. Qxb7 {[%emt 0:00:35]} Ra1 {[%emt 0:03:54]} 29. Qf3 {[%emt 0:00:29]} Ra2 {[%emt 0:01:22]} 30. g4 {[%emt 0:00:27]} Rd2 {[%emt 0:02:27]} 31. Bg3 {[%emt 0:00:28]} Qd4 {[%emt 0:00:48]} 32. Kh2 {[%emt 0:00:49]} Bd5 {[%emt 0:00:37]} 33. Qxd5 {[%emt 0:00:25]} Qxd5 {[%emt 0:00:02]} 34. Bxd5 {[%emt 0:00:05]} Rxd5 {[%emt 0:00:01]} 35. Kg2 {[%emt 0:00:47]} f5 {[%emt 0:00:23]} 36. g5 {[%emt 0:00:28]} Kg6 {[%emt 0:00:33]} 37. h4 {[%emt 0:00:14]} Rd4 {[%emt 0:01:05]} 38. f4 {[%emt 0:00:17]} Rd2+ {[%emt 0:01:31]} 39. Kf3 {[%emt 0:00:10]} Rd3+ {[%emt 0:00:05]} 40. Kg2 {[%emt 0:00:13]} Kh5 {[%emt 0:01:15]} 41. Rf3 {[%emt 0:12:51]} Rxf3 {[%emt 0:01:01]} 42. Kxf3 {[%emt 0:00:01]} a5 {[%emt 0:00:08]} 43. Be1 {[%emt 0:00:59]} a4 {[%emt 0:01:01]} 44. Bb4 {[%emt 0:03:57]} Kxh4 {[%emt 0:00:05]} 45. Bd6 {[%emt 0:09:13]} Bd4 {[%emt 0:01:09]} 46. Be7 {[%emt 0:00:03]} Kh5 {[%emt 0:00:39]} 47. Ba3 {[%emt 0:00:20]} Kg6 {[%emt 0:01:40]} 48. Ke2 {[%emt 0:01:02]} Kh5 {[%emt 0:02:03]} 49. Kf3 {[%emt 0:00:55]} f6 {[%emt 0:00:10]} 50. gxf6 {[%emt 0:04:55]} Bxf6 {[%emt 0:00:02]} 51. Kg3 {[%emt 0:00:20]} Bc3 {[%emt 0:00:05]} 52. Kh3 {[%emt 0:00:35]} Bd2 {[%emt 0:00:09]} 53. Kg3 {[%emt 0:00:13]} Kg6 {[%emt 0:00:07]} 54. Kf3 {[%emt 0:00:19]} Kf7 {[%emt 0:00:04]} 0-1

[Event "Austrian Championship 2022"]
[Site "Vienna"]
[Date "2022.08.17"]
[Round "7.17"]
[White "Kienboeck, Benjamin"]
[Black "Marakovits, Nico"]
[Result "1-0"]
[ECO "B33"]
[WhiteElo "2151"]
[BlackElo "2259"]
[Annotator "NA RC"]
[PlyCount "67"]
[EventDate "2022.08.12"]
[EventType "swiss"]
[EventCountry "AUT"]
[SourceTitle "playchess.com"]
[Source "ChessBase"]
[SourceQuality "1"]
[TimeControl "40/5400+30:1800+30"]

1. e4 {[%emt 0:00:03]} c5 {[%emt 0:00:10]} 2. Nf3 {[%emt 0:00:09]} e6 {[%emt 0:00:07]} 3. d4 {[%emt 0:00:07]} cxd4 {[%emt 0:00:04]} 4. Nxd4 {[%emt 0:00:08]} Nf6 {[%emt 0:00:05]} 5. Nc3 {[%emt 0:00:09]} Nc6 {[%emt 0:00:09]} 6. Ndb5 {[%emt 0:00:14]} d6 {[%emt 0:00:06]} 7. Bf4 {[%emt 0:00:15]} e5 {[%emt 0:00:04]} 8. Bg5 {[%emt 0:00:07]} a6 {[%emt 0:00:24]} 9. Na3 {[%emt 0:00:10]} b5 {[%emt 0:00:06]} 10. Nd5 {[%emt 0:00:08]} Be7 {[%emt 0:00:04]} 11. Bxf6 {[%emt 0:00:09]} Bxf6 {[%emt 0:00:04]} 12. c3 {[%emt 0:00:13]} O-O {[%emt 0:00:35]} 13. Nc2 {[%emt 0:00:09]} Rb8 {[%emt 0:14:50]} 14. a4 {[%emt 0:20:41]} bxa4 {[%emt 0:05:12]} 15. Rxa4 {[%emt 0:00:41]} a5 {[%emt 0:00:40]} 16. Ra2 {[%emt 0:00:10]} Be6 {[%emt 0:07:08]} 17. Bc4 {[%emt 0:01:43]} Bg5 {[%emt 0:06:30]} 18. Nce3 {[%emt 0:05:03]} g6 {[%emt 0:06:19]} 19. h4 {[%emt 0:11:06]} Bxh4 {[%emt 0:26:14]} 20. g3 {[%emt 0:00:14]} Bg5 {[%emt 0:01:20]} 21. f4 {[%emt 0:00:47]} exf4 {[%emt 0:01:23]} 22. gxf4 {[%emt 0:00:15]} Bh4+ {[%emt 0:13:32]} 23. Kf1 {[%emt 0:00:19]} Bf6 {[%emt 0:03:42]} 24. b3 {[%emt 0:05:01]} Bg7 {[%emt 0:03:52]} 25. Rah2 {[%emt 0:03:02]} Bxd5 {[%emt 0:04:19]} 26. Bxd5 {[%emt 0:15:24]} Qb6 {[%emt 0:01:49]} 27. Qf3 {[%emt 0:00:43]} h6 {[%emt 0:02:19]} 28. Rxh6 {[%emt 0:04:14]} Bxh6 {[%emt 0:00:35]} 29. Qh3 {[%emt 0:00:32]} Qb5+ {[%emt 0:00:31]} 30. Kf2 {[%emt 0:00:56]} Kg7 {[%emt 0:01:40]} 31. Qxh6+ {[%emt 0:00:06]} Kf6 {[%emt 0:00:04]} 32. Qg5+ {[%emt 0:00:25]} Kg7 {[%emt 0:00:07]} 33. Nf5+ {[%emt 0:00:33]} Kg8 {[%emt 0:00:04]} 34. Qxg6# {[%emt 0:00:07]} 1-0

[Event "Austrian Championship 2022"]
[Site "Vienna"]
[Date "2022.08.17"]
[Round "7.18"]
[White "Belke, Frank"]
[Black "Wagner, Leopold Franziskus"]
[Result "1/2-1/2"]
[ECO "E32"]
[WhiteElo "2226"]
[BlackElo "2080"]
[Annotator "NA RC"]
[PlyCount "110"]
[EventDate "2022.08.12"]
[EventType "swiss"]
[EventCountry "AUT"]
[SourceTitle "playchess.com"]
[Source "ChessBase"]
[SourceQuality "1"]
[TimeControl "40/5400+30:1800+30"]

1. d4 {[%emt 0:00:02]} Nf6 {[%emt 0:00:04]} 2. c4 {[%emt 0:00:03]} e6 {[%emt 0:00:03]} 3. Nc3 {[%emt 0:00:04]} Bb4 {[%emt 0:00:03]} 4. Qc2 {[%emt 0:00:06]} O-O {[%emt 0:00:50]} 5. a3 {[%emt 0:00:03]} Bxc3+ {[%emt 0:00:03]} 6. Qxc3 {[%emt 0:00:05]} b6 {[%emt 0:01:12]} 7. Bg5 {[%emt 0:00:05]} Bb7 {[%emt 0:00:38]} 8. f3 {[%emt 0:00:13]} h6 {[%emt 0:01:47]} 9. Bh4 {[%emt 0:00:06]} d6 {[%emt 0:13:17]} 10. e3 {[%emt 0:05:49]} Nbd7 {[%emt 0:00:44]} 11. Bd3 {[%emt 0:00:05]} Qe7 {[%emt 0:01:03]} 12. Ne2 {[%emt 0:00:31]} e5 {[%emt 0:02:31]} 13. O-O {[%emt 0:07:13]} g5 {[%emt 0:06:15]} 14. Bg3 {[%emt 0:01:57]} e4 {[%emt 0:00:31]} 15. Bc2 {[%emt 0:00:27]} d5 {[%emt 0:10:10]} 16. f4 {[%emt 0:11:06]} c6 {[%emt 0:05:52]} 17. fxg5 {[%emt 0:11:16]} hxg5 {[%emt 0:00:02]} 18. h4 {[%emt 0:00:08]} dxc4 {[%emt 0:05:07]} 19. hxg5 {[%emt 0:05:03]} Nd5 {[%emt 0:00:25]} 20. Qd2 {[%emt 0:00:56]} Qxg5 {[%emt 0:05:03]} 21. Bxe4 {[%emt 0:02:23]} Qxe3+ {[%emt 0:02:57]} 22. Qxe3 {[%emt 0:00:33]} Nxe3 {[%emt 0:00:01]} 23. Rf3 {[%emt 0:01:43]} f5 {[%emt 0:05:11]} 24. Rxe3 {[%emt 0:00:45]} fxe4 {[%emt 0:00:24]} 25. Rxe4 {[%emt 0:00:20]} Nf6 {[%emt 0:01:06]} 26. Re7 {[%emt 0:00:47]} Rae8 {[%emt 0:06:57]} 27. Rxe8 {[%emt 0:07:51]} Rxe8 {[%emt 0:00:11]} 28. Nc3 {[%emt 0:00:03]} Nd5 {[%emt 0:00:13]} 29. Be5 {[%emt 0:00:52]} Nxc3 {[%emt 0:00:50]} 30. bxc3 {[%emt 0:00:02]} c5 {[%emt 0:00:20]} 31. Kf2 {[%emt 0:00:31]} cxd4 {[%emt 0:00:55]} 32. Bxd4 {[%emt 0:00:06]} Kf7 {[%emt 0:00:38]} 33. Rh1 {[%emt 0:00:24]} Kg6 {[%emt 0:01:26]} 34. Rh3 {[%emt 0:01:30]} Rf8+ {[%emt 0:00:25]} 35. Ke3 {[%emt 0:00:27]} Re8+ {[%emt 0:01:16]} 36. Kd2 {[%emt 0:00:12]} Re7 {[%emt 0:00:27]} 37. Rh8 {[%emt 0:03:20]} Be4 {[%emt 0:02:20]} 38. Rg8+ {[%emt 0:01:51]} Kh7 {[%emt 0:00:20]} 39. Rh8+ {[%emt 0:02:19]} Kg6 {[%emt 0:00:28]} 40. Rf8 {[%emt 0:06:50]} Kh5 {[%emt 0:08:58]} 41. Rg8 {[%emt 0:33:05]} Kh6 {[%emt 0:30:44]} 42. g4 {[%emt 0:02:56]} Bf3 {[%emt 0:01:53]} 43. g5+ {[%emt 0:04:00]} Kh7 {[%emt 0:00:48]} 44. Rh8+ {[%emt 0:03:05]} Kg6 {[%emt 0:00:02]} 45. Be3 {[%emt 0:00:32]} Re6 {[%emt 0:07:04]} 46. Rh6+ {[%emt 0:04:16]} Kf5 {[%emt 0:00:28]} 47. Rh7 {[%emt 0:02:27]} Rd6+ {[%emt 0:07:55]} 48. Ke1 {[%emt 0:00:30]} a6 {[%emt 0:00:00]} 49. Rf7+ {[%emt 0:00:00]} Ke4 {[%emt 0:00:00]} 50. Bd4 {[%emt 0:00:00]} Bh5 {[%emt 0:00:00]} 51. Rh7 {[%emt 0:00:00]} Bg6 {[%emt 0:00:00]} 52. Rh3 {[%emt 0:00:00]} Kf4 {[%emt 0:00:00]} 53. Bf6 {[%emt 0:00:00]} Bf5 {[%emt 0:00:00]} 54. Rh2 {[%emt 0:00:00]} Bg4 {[%emt 0:00:00]} 55. Rd2 {[%emt 0:00:00]} Rxd2 {[%emt 0:00:00]} 1/2-1/2

[Event "Austrian Championship 2022"]
[Site "Vienna"]
[Date "2022.08.17"]
[Round "7.19"]
[White "Scheffknecht, Philipp"]
[Black "Nolz, Tom"]
[Result "1/2-1/2"]
[ECO "A20"]
[WhiteElo "2093"]
[BlackElo "2230"]
[Annotator "NA RC"]
[PlyCount "45"]
[EventDate "2022.08.12"]
[EventType "swiss"]
[EventCountry "AUT"]
[SourceTitle "playchess.com"]
[Source "ChessBase"]
[SourceQuality "1"]
[TimeControl "40/5400+30:1800+30"]

1. c4 {[%emt 0:01:56]} e5 {[%emt 0:00:34]} 2. g3 {[%emt 0:00:15]} c6 {[%emt 0:00:23]} 3. d4 {[%emt 0:02:28]} e4 {[%emt 0:03:44]} 4. Nc3 {[%emt 0:03:41]} Nf6 {[%emt 0:00:38]} 5. Bg5 {[%emt 0:04:12]} Bb4 {[%emt 0:00:14]} 6. Qb3 {[%emt 0:06:51]} Bxc3+ {[%emt 0:00:42]} 7. Qxc3 {[%emt 0:15:38]} O-O {[%emt 0:00:18]} 8. Nh3 {[%emt 0:08:44]} d5 {[%emt 0:02:47]} 9. Nf4 {[%emt 0:07:01]} h6 {[%emt 0:08:47]} 10. Bxf6 {[%emt 0:00:48]} Qxf6 {[%emt 0:00:01]} 11. cxd5 {[%emt 0:01:58]} g5 {[%emt 0:00:27]} 12. Ng2 {[%emt 0:02:45]} cxd5 {[%emt 0:00:08]} 13. h4 {[%emt 0:05:50]} Nc6 {[%emt 0:01:28]} 14. Rd1 {[%emt 0:04:48]} Be6 {[%emt 0:05:09]} 15. Qd2 {[%emt 0:02:34]} Kg7 {[%emt 0:03:25]} 16. Ne3 {[%emt 0:01:57]} Rh8 {[%emt 0:02:41]} 17. Bg2 {[%emt 0:04:37]} Qg6 {[%emt 0:03:55]} 18. h5 {[%emt 0:03:24]} Qh7 {[%emt 0:03:57]} 19. f3 {[%emt 0:05:08]} f5 {[%emt 0:02:24]} 20. Bh3 {[%emt 0:03:37]} Rae8 {[%emt 0:03:14]} 21. fxe4 {[%emt 0:01:20]} fxe4 {[%emt 0:11:45]} 22. Bxe6 {[%emt 0:00:23]} Rxe6 {[%emt 0:00:02]} 23. O-O {[%emt 0:01:44]} 1/2-1/2

[Event "Austrian Championship 2022"]
[Site "Vienna"]
[Date "2022.08.17"]
[Round "7.20"]
[White "Miazhynski, Yuri"]
[Black "Jethan, Martin"]
[Result "1-0"]
[ECO "B14"]
[WhiteElo "2166"]
[BlackElo "2103"]
[Annotator "NA RC"]
[PlyCount "73"]
[EventDate "2022.08.12"]
[EventType "swiss"]
[EventCountry "AUT"]
[SourceTitle "playchess.com"]
[Source "ChessBase"]
[SourceQuality "1"]
[TimeControl "40/5400+30:1800+30"]

1. e4 {[%emt 0:00:04]} c6 {[%emt 0:00:44]} 2. d4 {[%emt 0:00:50]} d5 {[%emt 0:00:08]} 3. exd5 {[%emt 0:00:09]} cxd5 {[%emt 0:00:05]} 4. c4 {[%emt 0:00:03]} Nf6 {[%emt 0:00:09]} 5. Nc3 {[%emt 0:00:06]} e6 {[%emt 0:00:19]} 6. Nf3 {[%emt 0:00:18]} Be7 {[%emt 0:01:41]} 7. c5 {[%emt 0:00:20]} b6 {[%emt 0:05:59]} 8. b4 {[%emt 0:00:13]} a5 {[%emt 0:07:12]} 9. Na4 {[%emt 0:00:47]} bxc5 {[%emt 0:10:58]} 10. bxc5 {[%emt 0:00:37]} Nfd7 {[%emt 0:04:58]} 11. Bf4 {[%emt 0:04:47]} O-O {[%emt 0:04:32]} 12. Bb5 {[%emt 0:04:36]} Ba6 {[%emt 0:04:36]} 13. Rb1 {[%emt 0:01:49]} Qc8 {[%emt 0:08:29]} 14. O-O {[%emt 0:02:21]} Nc6 {[%emt 0:07:46]} 15. Bxa6 {[%emt 0:03:33]} Rxa6 {[%emt 0:02:32]} 16. Re1 {[%emt 0:10:26]} Bd8 {[%emt 0:06:02]} 17. Qd3 {[%emt 0:14:01]} Nb4 {[%emt 0:06:25]} 18. Qe2 {[%emt 0:00:46]} Qc6 {[%emt 0:00:18]} 19. Nc3 {[%emt 0:00:32]} Ra8 {[%emt 0:01:01]} 20. a3 {[%emt 0:12:10]} Na6 {[%emt 0:00:21]} 21. Qb5 {[%emt 0:08:08]} Rc8 {[%emt 0:04:04]} 22. Qxc6 {[%emt 0:07:20]} Rxc6 {[%emt 0:00:01]} 23. Bd6 {[%emt 0:00:11]} Re8 {[%emt 0:00:29]} 24. Nxd5 {[%emt 0:00:13]} Nf6 {[%emt 0:04:06]} 25. Nxf6+ {[%emt 0:07:19]} Bxf6 {[%emt 0:20:05]} 26. Ne5 {[%emt 0:04:13]} Bxe5 {[%emt 0:00:00]} 27. Bxe5 {[%emt 0:00:04]} Nc7 {[%emt 0:00:00]} 28. Rb6 {[%emt 0:00:43]} Rxb6 {[%emt 0:00:00]} 29. cxb6 {[%emt 0:00:02]} Na6 {[%emt 0:00:00]} 30. b7 {[%emt 0:02:32]} f6 {[%emt 0:00:00]} 31. Bg3 {[%emt 0:00:24]} Kf7 {[%emt 0:00:00]} 32. Rc1 {[%emt 0:00:39]} e5 {[%emt 0:00:00]} 33. dxe5 {[%emt 0:00:27]} fxe5 {[%emt 0:04:00]} 34. Rc6 {[%emt 0:04:26]} Nb8 {[%emt 0:00:00]} 35. Rc8 {[%emt 0:00:08]} g5 {[%emt 0:00:00]} 36. Rxe8 {[%emt 0:00:15]} Kxe8 {[%emt 0:00:00]} 37. Bxe5 {[%emt 0:00:07]} 1-0

[Event "Austrian Championship 2022"]
[Site "Vienna"]
[Date "2022.08.17"]
[Round "7.22"]
[White "Miazhynski, Michael"]
[Black "Steiner, Bruno"]
[Result "1-0"]
[ECO "C41"]
[WhiteElo "1994"]
[BlackElo "2126"]
[Annotator "NA RC"]
[PlyCount "69"]
[EventDate "2022.08.12"]
[EventType "swiss"]
[EventCountry "AUT"]
[SourceTitle "playchess.com"]
[Source "ChessBase"]
[SourceQuality "1"]
[TimeControl "40/5400+30:1800+30"]

1. e4 {[%emt 0:00:03]} e5 {[%emt 0:09:44]} 2. Nf3 {[%emt 0:00:26]} d6 {[%emt 1:21:46]} 3. d4 {[%emt 0:00:09]} exd4 {[%emt 0:00:00]} 4. Nxd4 {[%emt 0:00:05]} Nf6 {[%emt 0:00:00]} 5. Nc3 {[%emt 0:00:08]} Be7 {[%emt 0:00:00]} 6. g3 {[%emt 0:00:29]} O-O {[%emt 0:00:00]} 7. Bg2 {[%emt 0:00:04]} Re8 {[%emt 0:00:00]} 8. O-O {[%emt 0:00:08]} c6 {[%emt 0:00:00]} 9. h3 {[%emt 0:02:52]} Bf8 {[%emt 0:00:00]} 10. Re1 {[%emt 0:12:46]} a5 {[%emt 0:00:00]} 11. Be3 {[%emt 0:04:28]} Nbd7 {[%emt 0:00:00]} 12. f4 {[%emt 0:01:25]} Nc5 {[%emt 0:00:00]} 13. Bf2 {[%emt 0:00:50]} Qc7 {[%emt 0:00:00]} 14. a4 {[%emt 0:01:51]} Bd7 {[%emt 0:00:00]} 15. Kh2 {[%emt 0:02:07]} Rad8 {[%emt 0:00:00]} 16. g4 {[%emt 0:06:08]} d5 {[%emt 0:00:00]} 17. e5 {[%emt 0:04:12]} Nfe4 {[%emt 0:00:00]} 18. Nxe4 {[%emt 0:01:00]} Nxe4 {[%emt 0:00:00]} 19. Bxe4 {[%emt 0:05:29]} dxe4 {[%emt 0:00:00]} 20. Qe2 {[%emt 0:00:16]} c5 {[%emt 0:00:00]} 21. Nb5 {[%emt 0:04:15]} Qc8 {[%emt 0:00:00]} 22. Qxe4 {[%emt 0:02:43]} f5 {[%emt 0:00:00]} 23. Qe2 {[%emt 0:16:29]} fxg4 {[%emt 0:00:00]} 24. Rad1 {[%emt 0:00:24]} gxh3 {[%emt 0:00:00]} 25. Bh4 {[%emt 0:01:44]} Bxb5 {[%emt 0:01:56]} 26. axb5 {[%emt 0:01:39]} Be7 {[%emt 0:02:27]} 27. Bxe7 {[%emt 0:03:35]} Rxe7 {[%emt 0:00:18]} 28. Rxd8+ {[%emt 0:10:59]} Qxd8 {[%emt 0:00:04]} 29. Kxh3 {[%emt 0:00:11]} Qd4 {[%emt 0:03:40]} 30. Qf3 {[%emt 0:03:09]} Qd7+ {[%emt 0:01:17]} 31. f5 {[%emt 0:00:23]} Qxb5 {[%emt 0:00:56]} 32. f6 {[%emt 0:08:07]} Re6 {[%emt 0:02:49]} 33. Qg4 {[%emt 0:00:47]} Qd7 {[%emt 0:00:35]} 34. Rd1 {[%emt 0:00:13]} Qf7 {[%emt 0:00:50]} 35. Rd8+ {[%emt 0:00:06]} 1-0

[Event "Austrian Championship 2022"]
[Site "Vienna"]
[Date "2022.08.17"]
[Round "7.23"]
[White "Sucher, Johannes"]
[Black "Teuschler, Barbara"]
[Result "0-1"]
[ECO "D20"]
[WhiteElo "2164"]
[BlackElo "2097"]
[Annotator "NA RC"]
[PlyCount "62"]
[EventDate "2022.08.12"]
[EventType "swiss"]
[EventCountry "AUT"]
[SourceTitle "playchess.com"]
[Source "ChessBase"]
[SourceQuality "1"]
[TimeControl "40/5400+30:1800+30"]

1. d4 {[%emt 0:00:04]} d5 {[%emt 0:00:03]} 2. c4 {[%emt 0:00:49]} dxc4 {[%emt 0:00:06]} 3. e4 {[%emt 0:00:39]} e5 {[%emt 0:00:04]} 4. Nf3 {[%emt 0:01:07]} exd4 {[%emt 0:00:03]} 5. Bxc4 {[%emt 0:01:51]} Nc6 {[%emt 0:00:10]} 6. O-O {[%emt 0:01:51]} Be6 {[%emt 0:00:05]} 7. Bb5 {[%emt 0:02:06]} Bc5 {[%emt 0:00:05]} 8. b4 {[%emt 0:03:33]} Bb6 {[%emt 0:00:05]} 9. a4 {[%emt 0:04:11]} a6 {[%emt 0:00:06]} 10. Bxc6+ {[%emt 0:02:14]} bxc6 {[%emt 0:00:01]} 11. a5 {[%emt 0:04:05]} Ba7 {[%emt 0:00:07]} 12. Qd3 {[%emt 0:04:55]} Ne7 {[%emt 0:06:22]} 13. Rd1 {[%emt 0:00:46]} Bg4 {[%emt 0:07:39]} 14. Qxa6 {[%emt 0:08:18]} O-O {[%emt 0:00:51]} 15. Qc4 {[%emt 0:07:07]} Qd6 {[%emt 0:10:32]} 16. Ba3 {[%emt 0:13:34]} Bxf3 {[%emt 0:18:13]} 17. gxf3 {[%emt 0:01:16]} Rfe8 {[%emt 0:00:41]} 18. Nd2 {[%emt 0:02:33]} Ng6 {[%emt 0:00:25]} 19. Kh1 {[%emt 0:11:58]} Qf6 {[%emt 0:14:51]} 20. Bb2 {[%emt 0:04:02]} Ne5 {[%emt 0:04:13]} 21. Qb3 {[%emt 0:00:10]} Qf4 {[%emt 0:09:14]} 22. Ra3 {[%emt 0:04:04]} Re6 {[%emt 0:01:10]} 23. Bc1 {[%emt 0:00:51]} d3 {[%emt 0:01:14]} 24. Rg1 {[%emt 0:01:33]} Bxf2 {[%emt 0:09:03]} 25. Rg2 {[%emt 0:00:07]} Be3 {[%emt 0:00:41]} 26. Qd1 {[%emt 0:00:12]} Rg6 {[%emt 0:00:54]} 27. Rxg6 {[%emt 0:01:03]} hxg6 {[%emt 0:01:48]} 28. Rc3 {[%emt 0:19:31]} g5 {[%emt 0:00:20]} 29. Nc4 {[%emt 0:00:00]} Nxf3 {[%emt 0:00:33]} 30. Kg2 {[%emt 0:00:00]} Qg4+ {[%emt 0:01:14]} 31. Kh1 {[%emt 0:00:00]} Qh3 {[%emt 0:00:18]} 0-1

[Event "Austrian Championship 2022"]
[Site "Vienna"]
[Date "2022.08.17"]
[Round "7.24"]
[White "Balint, Peter"]
[Black "Oberhuber, Alexander"]
[Result "1-0"]
[ECO "B38"]
[WhiteElo "2051"]
[BlackElo "2062"]
[Annotator "NA RC"]
[PlyCount "41"]
[EventDate "2022.08.12"]
[EventType "swiss"]
[EventCountry "AUT"]
[SourceTitle "playchess.com"]
[Source "ChessBase"]
[SourceQuality "1"]
[TimeControl "40/5400+30:1800+30"]

1. e4 {[%emt 0:00:02]} c5 {[%emt 0:00:19]} 2. Nf3 {[%emt 0:00:03]} g6 {[%emt 0:00:13]} 3. d4 {[%emt 0:00:02]} cxd4 {[%emt 0:00:13]} 4. Nxd4 {[%emt 0:00:02]} Bg7 {[%emt 0:00:27]} 5. c4 {[%emt 0:00:02]} Nc6 {[%emt 0:00:16]} 6. Be3 {[%emt 0:00:03]} Nf6 {[%emt 0:00:24]} 7. Nc3 {[%emt 0:00:02]} O-O {[%emt 0:01:16]} 8. Be2 {[%emt 0:00:25]} d6 {[%emt 0:00:13]} 9. O-O {[%emt 0:00:12]} a5 {[%emt 0:02:06]} 10. Nc2 {[%emt 0:00:17]} a4 {[%emt 0:00:38]} 11. Na3 {[%emt 0:00:49]} Be6 {[%emt 0:03:38]} 12. f3 {[%emt 0:03:15]} Qa5 {[%emt 0:00:26]} 13. Nd5 {[%emt 0:05:38]} Nd7 {[%emt 0:00:32]} 14. Rb1 {[%emt 0:03:01]} f5 {[%emt 0:09:01]} 15. Nb5 {[%emt 0:07:47]} Rac8 {[%emt 0:04:53]} 16. c5 {[%emt 0:25:16]} dxc5 {[%emt 0:07:32]} 17. Nf4 {[%emt 0:01:00]} Bxa2 {[%emt 0:03:07]} 18. Qxd7 {[%emt 0:04:27]} Nd4 {[%emt 0:05:10]} 19. Bxd4 {[%emt 0:03:37]} Rfd8 {[%emt 0:02:21]} 20. Qxe7 {[%emt 0:01:40]} cxd4 {[%emt 0:01:21]} 21. Ne6 {[%emt 0:05:25]} 1-0